bitfinex/quotes_ETHUSD_20251018
["timestamp","ask_amount","ask_price","bid_price","bid_amount"]
[1760812950253,21.68754065,3899.1,3899.0,0.002]
[1760812950652,8.363518,3899.1,3899.0,0.002]
[1760812950845,3.1612,3899.1,3899.0,0.002]
[1760812951049,3.20590999,3899.1,3899.0,0.002]
[1760812951240,5.93031199,3899.1,3899.0,0.002]
[1760812951868,3.20590999,3899.1,3899.0,0.002]
[1760812952069,3.20590999,3899.1,3899.0,0.4414]
[1760812952070,2.53430999,3899.1,3899.0,0.4414]
[1760812952863,7.23792932,3899.1,3899.0,0.002]
[1760812954469,9.46942832,3899.1,3899.0,0.002]
[1760812954978,7.23792932,3899.1,3899.0,0.002]
[1760812955564,9.96565132,3899.1,3899.0,0.002]
[1760812956153,9.66005332,3899.1,3899.0,0.002]
[1760812956354,7.67932932,3899.1,3899.0,0.002]
[1760812957474,7.23792932,3899.1,3899.0,0.002]
[1760812957684,7.23792932,3899.1,3899.0,0.4478]
[1760812958584,7.23792932,3899.1,3899.0,0.002]
[1760812959980,7.23792932,3899.1,3899.0,0.4478]
[1760812963284,5.50992932,3899.1,3899.0,0.4478]
[1760812967686,7.23792932,3899.1,3899.0,0.4478]
[1760812968494,7.23792932,3899.1,3899.0,0.002]
[1760812968695,7.23792932,3899.1,3899.0,0.4478]
[1760812970392,7.64022145,3899.1,3899.0,0.4478]
[1760812970896,7.64022145,3899.1,3899.0,0.002]
[1760812981926,10.44913945,3899.1,3899.0,0.002]
[1760812982916,7.64022145,3899.1,3899.0,0.002]
[1760812983122,11.59035445,3899.1,3899.0,0.002]
[1760812983936,7.64022145,3899.1,3899.0,0.002]
[1760812984143,11.52608045,3899.1,3899.0,0.002]
[1760812984546,14.09077486,3899.1,3899.0,0.002]
[1760812984742,11.52608045,3899.1,3899.0,0.002]
[1760812985039,13.06132845,3899.1,3899.0,0.002]
[1760812985346,11.77882845,3899.1,3899.0,0.002]
[1760812986238,11.77578645,3899.1,3899.0,0.002]
[1760812987107,11.58968645,3899.1,3899.0,0.002]
[1760812988018,7.64022145,3899.1,3899.0,0.002]
[1760812988343,11.58968645,3899.1,3899.0,0.002]
[1760812988639,10.51576745,3899.1,3899.0,0.002]
[1760812989048,7.64022145,3899.1,3899.0,0.002]
[1760812989340,7.64022145,3899.1,3899.0,0.4488]
[1760812989523,9.70712345,3899.1,3899.0,0.4488]
[1760812989725,9.70712345,3899.1,3899.0,0.002]
[1760812989933,9.89995545,3899.1,3899.0,0.002]
[1760812992260,9.90046845,3899.1,3899.0,0.002]
[1760812993060,7.64022145,3899.1,3899.0,0.002]
[1760812993270,10.13696345,3899.1,3899.0,0.002]
[1760812994547,7.64022145,3899.1,3899.0,0.4488]
[1760812998061,7.51222145,3899.1,3899.0,0.002]
[1760812998460,7.51222145,3899.1,3899.0,0.4488]
[1760813006964,7.51222145,3899.1,3899.0,0.002]
[1760813007778,7.51222145,3899.1,3899.0,0.4488]
[1760813008276,7.51222145,3899.1,3899.0,0.002]
[1760813009145,12.16796845,3899.1,3899.0,0.002]
[1760813010349,11.76567632,3899.1,3899.0,0.002]
[1760813011572,9.49619432,3899.1,3899.0,0.002]
[1760813011747,7.10992932,3899.1,3899.0,0.002]
[1760813011948,9.30337232,3899.1,3899.0,0.002]
[1760813017387,7.10992932,3899.1,3899.0,0.002]
[1760813017586,7.5122403,3899.1,3899.0,0.4302]
[1760813017785,7.61511288,3899.1,3899.0,0.4302]
[1760813018289,7.5122403,3899.1,3899.0,0.4302]
[1760813025998,0.44702097,3899.1,3899.0,0.4302]
[1760813026197,0.57502097,3899.1,3899.0,0.4302]
[1760813026398,0.57502097,3899.1,3899.0,0.8604]
[1760813026566,0.128,3899.1,3899.0,0.8604]
[1760813026766,0.7616,3899.1,3899.0,0.8604]
[1760813031396,0.80630452,3899.1,3899.0,0.8604]
[1760813058243,0.04470452,3899.1,3899.0,0.8915]
[1760813058401,0.04470452,3899.1,3899.0,1.8772187]
[1760813058937,0.001,3899.4,3899.0,4.44197889]
[1760813059152,0.001,3899.4,3899.1,0.6946]
[1760813059543,0.001,3899.4,3899.2,0.56214217]
[1760813059922,0.001,3899.4,3899.2,0.4593]
[1760813060248,0.001,3899.4,3899.3,0.56214217]
[1760813062424,0.001,3899.4,3899.3,3.12670504]
[1760813063340,0.04569978,3899.4,3899.3,3.12670504]
[1760813066258,0.001,3899.4,3899.3,0.56214217]
[1760813066460,0.001,3899.4,3899.3,3.12670504]
[1760813066664,0.001,3899.4,3899.3,3.76440364]
[1760813067162,0.001,3899.4,3899.3,7.57467323]
[1760813070059,0.001,3899.4,3899.3,3.76440364]
[1760813070646,0.001,3899.4,3899.3,1.19984077]
[1760813070851,0.001,3899.4,3899.3,0.56214217]
[1760813071050,0.001,3899.4,3899.3,3.12670504]
[1760813074605,0.001,3899.4,3899.3,0.10284217]
[1760813075315,0.129,3899.4,3899.3,0.10284217]
[1760813075601,0.7626,3899.4,3899.3,0.10284217]
[1760813075967,0.8459,3899.4,3899.3,0.10284217]
[1760813076379,0.6336,3899.3,3899.0,0.002]
[1760813076692,0.6336,3899.3,3899.0,0.77338967]
[1760813076693,0.7616,3899.1,3899.0,0.77338967]
[1760813077765,0.7616,3899.1,3899.0,0.002]
[1760813080170,0.80630375,3899.1,3899.0,0.002]
[1760813080493,1.20857712,3899.1,3899.0,0.002]
[1760813080698,0.80630375,3899.1,3899.0,0.002]
[1760813085299,0.80630375,3899.1,3899.0,0.4672]
[1760813087884,0.80630375,3899.1,3899.0,0.002]
[1760813090502,0.88960375,3899.1,3899.0,0.002]
[1760813091391,0.80630375,3899.1,3899.0,0.002]
[1760813091595,0.6336,3899.0,3898.3,4.34162429]
[1760813091798,0.6336,3899.0,3898.3,3.13325136]
[1760813092603,0.6336,3898.8,3898.3,3.13325136]
[1760813092922,0.6336,3898.8,3898.4,3.03033752]
[1760813093276,0.6336,3898.8,3898.5,0.4652]
[1760813093475,0.6336,3898.8,3898.4,2.56513752]
[1760813093710,0.6336,3898.8,3898.6,0.4652]
[1760813093905,0.6336,3898.8,3898.3,0.1028583]
[1760813094209,0.6336,3898.8,3898.2,3.77556599]
[1760813094411,0.6336,3898.8,3898.4,0.002]
[1760813094608,0.6336,3899.0,3898.4,0.002]
[1760813096195,0.0833,3899.0,3898.4,0.002]
[1760813096801,2.4449,3899.0,3898.4,0.002]
[1760813097196,2.3616,3898.8,3898.4,0.002]
[1760813097518,0.6336,3898.9,3898.4,0.002]
[1760813098021,0.6336,3898.7,3898.4,0.002]
[1760813098313,0.6336,3898.8,3898.4,0.002]
[1760813100494,0.0833,3898.7,3898.4,0.002]
[1760813101122,2.4449,3898.7,3898.4,0.002]
[1760813101422,0.6336,3898.5,3898.4,0.002]
[1760813101622,34.92668913,3898.5,3898.4,0.002]
[1760813101925,35.21387796,3898.5,3898.4,0.002]
[1760813102231,35.43203796,3898.5,3898.4,0.002]
[1760813102522,35.87921315,3898.5,3898.4,0.002]
[1760813104626,3.19882073,3898.3,3898.2,0.002]
[1760813104796,27.79801206,3898.3,3898.2,0.002]
[1760813104998,29.9284543,3898.3,3898.2,0.002]
[1760813105229,30.03137003,3898.3,3898.2,0.002]
[1760813105411,30.37032203,3898.3,3898.2,0.002]
[1760813106235,28.74621303,3898.3,3898.2,0.002]
[1760813106396,33.35971103,3898.3,3898.2,0.002]
[1760813107217,32.58626103,3898.3,3898.2,0.002]
[1760813107402,30.37087503,3898.3,3898.2,0.002]
[1760813107593,20.65255003,3898.3,3898.2,0.002]
[1760813108412,25.29590803,3898.3,3898.2,0.002]
[1760813109323,18.69609291,3898.3,3898.2,0.002]
[1760813109500,23.08492191,3898.3,3898.2,0.002]
[1760813110523,24.45583291,3898.3,3898.2,0.002]
[1760813111434,25.35969391,3898.3,3898.2,0.002]
[1760813111836,24.06669291,3898.3,3898.2,0.002]
[1760813112427,26.25068191,3898.3,3898.2,0.002]
[1760813112634,24.21099591,3898.3,3898.2,0.002]
[1760813113447,27.73515291,3898.3,3898.2,0.002]
[1760813114549,27.56548691,3898.3,3898.2,0.002]
[1760813114754,27.34374091,3898.3,3898.2,0.002]
[1760813115153,20.97695691,3898.3,3898.2,0.002]
[1760813115466,20.89365691,3898.3,3898.2,0.002]
[1760813115655,24.07464691,3898.3,3898.2,0.002]
[1760813116433,11.61322906,3898.3,3898.2,0.002]
[1760813116645,13.58790733,3898.3,3898.2,0.002]
[1760813116861,14.22150733,3898.3,3898.2,0.002]
[1760813117148,16.78672806,3898.3,3898.2,0.002]
[1760813117313,17.22032806,3898.3,3898.2,0.002]
[1760813117514,21.19046806,3898.3,3898.2,0.002]
[1760813117710,16.20413733,3898.3,3898.2,0.002]
[1760813118047,14.46501633,3898.3,3898.2,0.002]
[1760813118219,17.13314961,3898.3,3898.2,0.002]
[1760813118609,19.72613261,3898.3,3898.2,0.002]
[1760813118824,18.18823761,3898.3,3898.2,0.002]
[1760813119635,18.70118661,3898.3,3898.2,0.002]
[1760813119831,17.82788361,3898.3,3898.2,0.002]
[1760813120670,20.57402095,3898.3,3898.2,0.002]
[1760813121176,18.71774395,3898.3,3898.2,0.002]
[1760813121631,21.23806895,3898.3,3898.2,0.002]
[1760813122064,20.04111895,3898.3,3898.2,0.002]
[1760813122263,14.37255522,3898.3,3898.2,0.002]
[1760813122470,16.93777595,3898.3,3898.2,0.002]
[1760813122667,20.27112395,3898.3,3898.2,0.002]
[1760813122841,18.95454395,3898.3,3898.2,0.002]
[1760813123347,18.73999095,3898.3,3898.2,0.002]
[1760813123760,18.96041995,3898.3,3898.2,0.002]
[1760813124163,18.75959795,3898.3,3898.2,0.002]
[1760813124750,19.98911895,3898.3,3898.2,0.002]
[1760813124951,18.51695695,3898.3,3898.2,0.002]
[1760813125861,19.02860895,3898.3,3898.2,0.002]
[1760813126062,18.46944895,3898.3,3898.2,0.002]
[1760813126889,18.86832795,3898.3,3898.2,0.002]
[1760813127088,18.47094995,3898.3,3898.2,0.002]
[1760813127796,20.68620395,3898.3,3898.2,0.002]
[1760813128868,23.28194595,3898.3,3898.2,0.002]
[1760813129091,22.09094595,3898.3,3898.2,0.002]
[1760813129298,18.77039795,3898.3,3898.2,0.002]
[1760813129598,16.20517722,3898.3,3898.2,0.002]
[1760813129761,16.20517722,3898.3,3898.2,0.4336]
[1760813129967,20.36145895,3898.3,3898.2,0.4336]
[1760813130292,19.84305895,3898.3,3898.2,0.4336]
[1760813130888,20.10818795,3898.3,3898.2,0.4336]
[1760813131265,18.99578495,3898.3,3898.2,0.4336]
[1760813131463,9.86706167,3898.3,3898.2,0.4336]
[1760813131673,9.94857167,3898.3,3898.2,0.4336]
[1760813131899,10.58217167,3898.3,3898.2,0.4336]
[1760813132097,12.54699367,3898.3,3898.2,0.002]
[1760813132502,12.14456333,3898.3,3898.2,0.002]
[1760813133071,16.28722233,3898.3,3898.2,0.002]
[1760813134305,16.28918933,3898.3,3898.2,0.002]
[1760813134817,18.89912772,3898.3,3898.2,0.002]
[1760813135181,21.18698372,3898.3,3898.2,0.002]
[1760813135422,19.0241791,3898.3,3898.2,0.002]
[1760813135781,15.7770441,3898.3,3898.2,0.002]
[1760813136320,15.7692141,3898.3,3898.2,0.002]
[1760813137222,20.96087583,3898.3,3898.2,0.002]
[1760813137527,21.28001807,3898.3,3898.2,0.002]
[1760813138045,21.23530041,3898.3,3898.2,0.002]
[1760813138174,26.88539741,3898.3,3898.2,0.002]
[1760813138381,13.06594568,3898.3,3898.2,0.002]
[1760813138604,13.06594568,3898.3,3898.2,0.4618]
[1760813139182,21.15497541,3898.3,3898.2,0.002]
[1760813140186,24.62988941,3898.3,3898.2,0.002]
[1760813140813,24.71318941,3898.3,3898.2,0.002]
[1760813141122,24.75791083,3898.3,3898.2,0.002]
[1760813141322,33.49327383,3898.3,3898.2,0.002]
[1760813141529,33.59619141,3898.3,3898.2,0.002]
[1760813142312,38.27560341,3898.3,3898.2,0.002]
[1760813142644,37.47922941,3898.3,3898.2,0.002]
[1760813143008,36.26438341,3898.3,3898.2,0.002]
[1760813143350,36.08663341,3898.3,3898.2,0.002]
[1760813144144,33.56529341,3898.3,3898.2,0.002]
[1760813144443,33.48225041,3898.3,3898.2,0.002]
[1760813144751,21.94321254,3898.2,3898.1,0.002]
[1760813144958,22.26235478,3898.2,3898.1,0.002]
[1760813145117,16.09211178,3898.2,3898.1,0.4618]
[1760813145316,18.63818578,3898.2,3898.1,0.4618]
[1760813145639,18.63818578,3898.2,3898.1,0.002]
[1760813145845,15.83787778,3898.2,3898.1,0.002]
[1760813146044,15.83787778,3898.2,3898.1,0.4618]
[1760813146353,19.03314278,3898.2,3898.1,0.4618]
[1760813146513,6.737617,3898.2,3898.1,0.6976]
[1760813146844,7.14007256,3898.2,3898.1,0.6976]
[1760813147414,12.49599556,3898.2,3898.1,0.6976]
[1760813147746,12.16393156,3898.2,3898.1,0.6976]
[1760813147944,10.29166156,3898.2,3898.1,0.6976]
[1760813148135,6.16018356,3898.2,3898.1,0.6976]
[1760813148332,5.93628956,3898.2,3898.1,0.6976]
[1760813148537,6.26891756,3898.2,3898.1,0.6976]
[1760813149049,2.76405556,3898.2,3898.1,0.6976]
[1760813149226,5.37347656,3898.2,3898.1,0.6976]
[1760813149423,12.72396056,3898.2,3898.1,0.6976]
[1760813149750,10.31802356,3898.2,3898.1,0.6976]
[1760813150645,4.90968256,3898.2,3898.1,0.6976]
[1760813151326,4.95440142,3898.2,3898.1,0.6976]
[1760813151539,6.32962142,3898.2,3898.1,0.6976]
[1760813151738,6.28490256,3898.2,3898.1,0.6976]
[1760813151940,6.32962143,3898.2,3898.1,0.6976]
[1760813152246,4.92355443,3898.2,3898.1,0.6976]
[1760813152416,2.80877443,3898.2,3898.1,0.6976]
[1760813152831,4.92449743,3898.2,3898.1,0.6976]
[1760813153767,2.80877443,3898.2,3898.1,0.6976]
[1760813154244,5.59146743,3898.2,3898.1,0.6976]
[1760813154538,2.80877443,3898.2,3898.1,0.6976]
[1760813155419,4.92693943,3898.2,3898.1,0.6976]
[1760813155620,2.80877443,3898.2,3898.1,0.6976]
[1760813159160,5.93360543,3898.2,3898.1,0.6976]
[1760813159756,2.80877443,3898.2,3898.1,0.6976]
[1760813160074,5.40560543,3898.2,3898.1,0.6976]
[1760813160464,2.80877443,3898.2,3898.1,0.6976]
[1760813160644,5.40560543,3898.2,3898.1,0.6976]
[1760813161578,10.70129143,3898.2,3898.1,0.6976]
[1760813161781,10.70129143,3898.2,3898.1,0.002]
[1760813162278,10.09925543,3898.2,3898.1,0.002]
[1760813162459,6.69160643,3898.2,3898.1,0.002]
[1760813162642,6.71968343,3898.2,3898.1,0.002]
[1760813163139,5.86498843,3898.2,3898.1,0.002]
[1760813163575,8.29537443,3898.2,3898.1,0.002]
[1760813164483,10.86066097,3898.2,3898.1,0.002]
[1760813164689,13.60585497,3898.2,3898.1,0.002]
[1760813164995,8.40912543,3898.2,3898.1,0.002]
[1760813165671,9.11098143,3898.2,3898.1,0.002]
[1760813165879,7.88201543,3898.2,3898.1,0.002]
[1760813166675,9.64360243,3898.2,3898.1,0.002]
[1760813166879,8.52444843,3898.2,3898.1,0.002]
[1760813167800,10.30097443,3898.2,3898.1,0.002]
[1760813168685,2.80977443,3898.2,3898.1,0.002]
[1760813168993,10.32667643,3898.2,3898.1,0.002]
[1760813169195,7.82853743,3898.2,3898.1,0.002]
[1760813169582,10.39382397,3898.2,3898.1,0.002]
[1760813169784,17.11640697,3898.2,3898.1,0.002]
[1760813170394,14.56684597,3898.2,3898.1,0.002]
[1760813170773,12.13253497,3898.2,3898.1,0.002]
[1760813171795,12.48252097,3898.2,3898.1,0.002]
[1760813172828,26.18029297,3898.2,3898.1,0.002]
[1760813172999,26.49943521,3898.2,3898.1,0.002]
[1760813173603,26.41613521,3898.2,3898.1,0.002]
[1760813173787,26.81579121,3898.2,3898.1,0.002]
[1760813174987,27.23634521,3898.2,3898.1,0.002]
[1760813175795,23.99419621,3898.2,3898.1,0.002]
[1760813175993,23.19752121,3898.2,3898.1,0.002]
[1760813176214,32.3616,3897.9,3897.8,0.002]
[1760813176385,34.43913554,3897.9,3897.8,0.002]
[1760813176587,34.52243554,3897.9,3897.8,0.002]
[1760813176788,30.31411254,3897.9,3897.8,0.002]
[1760813176984,30.12118554,3897.9,3897.8,0.002]
[1760813177424,30.20448554,3897.9,3897.8,0.002]
[1760813177720,30.12118554,3897.9,3897.8,0.002]
[1760813177928,31.83085754,3897.9,3897.8,0.002]
[1760813178925,31.74937454,3897.9,3897.8,0.002]
[1760813180023,31.82488854,3897.9,3897.8,0.002]
[1760813180521,31.90818854,3897.9,3897.8,0.002]
[1760813180721,28.0205905,3897.9,3897.8,0.002]
[1760813180925,10.0778705,3897.9,3897.8,0.002]
[1760813181123,26.0806905,3897.9,3897.8,0.002]
[1760813181342,24.3838355,3897.9,3897.8,0.002]
[1760813181634,16.28824326,3897.9,3897.8,0.4497]
[1760813181994,20.83606926,3897.9,3897.8,0.4497]
[1760813182189,19.78500126,3897.9,3897.8,0.4497]
[1760813182390,20.18747287,3897.9,3897.8,0.4497]
[1760813183026,22.02774187,3897.9,3897.8,0.4497]
[1760813183630,20.52793226,3897.9,3897.8,0.002]
[1760813183996,9.67542826,3897.9,3897.8,0.002]
[1760813184200,19.77600426,3897.9,3897.8,0.002]
[1760813185011,21.15477026,3897.9,3897.8,0.002]
[1760813185533,21.1100453,3897.9,3897.8,0.002]
[1760813185698,4.92714979,3897.8,3897.7,0.002]
[1760813185903,38.9441646,3897.5,3897.4,0.002]
[1760813186235,9.95010884,3897.5,3897.4,0.002]
[1760813186435,32.19485584,3897.5,3897.4,0.002]
[1760813186902,20.99192784,3897.5,3897.4,0.002]
[1760813187102,26.40532784,3897.5,3897.4,0.002]
[1760813187330,25.34151684,3897.5,3897.4,0.002]
[1760813187521,24.03365684,3897.5,3897.4,0.002]
[1760813188025,24.43618563,3897.5,3897.4,0.002]
[1760813188231,25.28093663,3897.5,3897.4,0.002]
[1760813188410,23.79494763,3897.5,3897.4,0.002]
[1760813188798,23.83967557,3897.5,3897.4,0.002]
[1760813189231,25.85321157,3897.5,3897.4,0.002]
[1760813190200,24.89493657,3897.5,3897.4,0.002]
[1760813191098,10.39736557,3897.5,3897.4,0.002]
[1760813191298,34.61110757,3897.5,3897.4,0.002]
[1760813191533,34.35385457,3897.5,3897.4,0.002]
[1760813192229,34.45039557,3897.5,3897.4,0.002]
[1760813192798,33.39236657,3897.5,3897.4,0.002]
[1760813193431,35.14907057,3897.5,3897.4,0.002]
[1760813194298,13.756317,3897.1,3896.9,0.002]
[1760813194513,20.18793633,3897.1,3896.9,0.002]
[1760813194869,18.05032762,3897.1,3897.0,0.4652]
[1760813195145,23.20125205,3897.1,3897.0,0.4652]
[1760813195311,40.07853505,3897.1,3897.0,0.4652]
[1760813195508,39.36538805,3897.1,3897.0,0.4652]
[1760813196009,39.36538805,3897.1,3897.0,0.002]
[1760813196207,22.54462943,3897.1,3897.0,0.4652]
[1760813196845,22.14205543,3897.1,3897.0,0.4652]
[1760813197247,7.10995043,3897.1,3897.0,0.4652]
[1760813197417,23.73775833,3897.1,3897.0,0.4652]
[1760813198326,7.06521933,3897.1,3897.0,0.4652]
[1760813198528,23.01447633,3897.1,3897.0,0.4652]
[1760813199212,14.68607933,3897.1,3897.0,0.4652]
[1760813199423,16.51403833,3897.1,3897.0,0.002]
[1760813199649,16.9165844,3897.1,3897.0,0.4652]
[1760813200440,18.27783326,3897.1,3897.0,0.4652]
[1760813200928,17.54248326,3897.1,3897.0,0.4652]
[1760813201337,15.69434726,3897.1,3897.0,0.4652]
[1760813202445,15.81737926,3897.1,3897.0,0.4652]
[1760813203685,15.66216026,3897.1,3897.0,0.4652]
[1760813204048,15.25961419,3897.1,3897.0,0.4652]
[1760813204646,7.10994819,3897.1,3897.0,0.4652]
[1760813204952,15.26430219,3897.1,3897.0,0.4652]
[1760813205879,15.26102019,3897.1,3897.0,0.4652]
[1760813206766,17.22147719,3897.1,3897.0,0.4652]
[1760813207578,16.60721919,3897.1,3897.0,0.4652]
[1760813207874,7.10994819,3897.1,3897.0,0.4652]
[1760813208575,7.5124761,3897.1,3897.0,0.4652]
[1760813208979,9.6630091,3897.1,3897.0,0.4652]
[1760813212952,7.5124761,3897.1,3897.0,0.4652]
[1760813213151,1.08085677,3897.1,3897.0,0.4652]
[1760813213856,1.03612791,3897.1,3897.0,0.4652]
[1760813214494,6.50302391,3897.1,3897.0,0.002]
[1760813214783,6.50302391,3897.1,3897.0,0.4652]
[1760813215673,6.78951791,3897.1,3897.0,0.4652]
[1760813216656,5.28368983,3897.1,3897.0,0.4652]
[1760813217193,9.98730916,3897.1,3897.0,0.002]
[1760813217793,14.30741816,3897.1,3897.0,0.002]
[1760813218399,14.26269224,3897.1,3897.0,0.002]
[1760813218691,7.46774724,3897.1,3897.0,0.002]
[1760813218857,14.26269224,3897.1,3897.0,0.002]
[1760813219259,10.54297024,3897.1,3897.0,0.002]
[1760813219459,9.66173624,3897.1,3897.0,0.002]
[1760813219756,10.10403024,3897.1,3897.0,0.4652]
[1760813220187,10.10403024,3897.1,3897.0,0.002]
[1760813220392,12.67004086,3897.1,3897.0,0.002]
[1760813220800,17.61881586,3897.1,3897.0,0.002]
[1760813221193,16.18587786,3897.1,3897.0,0.002]
[1760813221908,14.83656924,3897.1,3897.0,0.002]
[1760813222096,16.31301386,3897.1,3897.0,0.002]
[1760813222276,12.71738224,3897.1,3897.0,0.002]
[1760813222478,12.71738224,3897.1,3897.0,0.4652]
[1760813222802,10.25708024,3897.1,3897.0,0.4652]
[1760813227176,9.64775224,3897.1,3897.0,0.4652]
[1760813227587,2.76412791,3897.1,3897.0,0.4652]
[1760813227976,2.3616,3897.1,3897.0,0.4652]
[1760813230835,2.76410471,3897.1,3897.0,0.4652]
[1760813231400,2.17522832,3897.1,3897.0,0.4652]
[1760813231602,2.30322832,3897.1,3897.0,0.4652]
[1760813231803,2.93682832,3897.1,3897.0,0.4652]
[1760813232147,2.30322832,3897.1,3897.0,0.4652]
[1760813232734,2.93682832,3897.1,3897.0,0.4652]
[1760813233236,2.30322832,3897.1,3897.0,0.4652]
[1760813233539,1.90072361,3897.1,3897.0,0.4652]
[1760813233939,1.90072361,3897.1,3897.0,0.8152651]
[1760813235642,1.90072361,3897.1,3897.0,0.4652]
[1760813237742,0.04472361,3897.1,3897.0,0.4652]
[1760813237915,0.04472361,3897.1,3897.0,0.9304]
[1760813238238,0.001,3897.3,3897.0,3.49647646]
[1760813238416,0.001,3897.3,3897.2,0.2242]
[1760813238616,0.001,3897.3,3897.2,0.60020366]
[1760813238820,0.001,3897.3,3897.2,1.1007631]
[1760813240022,0.001,3897.3,3897.2,3.79470788]
[1760813240222,0.001,3897.3,3897.2,3.76904844]
[1760813240425,0.001,3897.3,3897.2,3.79470788]
[1760813241249,0.001,3897.3,3897.2,1.20310366]
[1760813241413,0.001,3897.3,3897.2,3.76904844]
[1760813242030,0.001,3897.3,3897.2,3.87193346]
[1760813242350,0.001,3897.3,3897.2,3.8975929]
[1760813244827,0.001,3897.3,3897.2,3.87193346]
[1760813249262,0.001,3897.3,3897.2,3.8975929]
[1760813249459,0.001,3897.3,3897.2,8.60121223]
[1760813249622,0.001,3897.3,3897.2,8.57555279]
[1760813251356,0.001,3897.3,3897.2,3.87193346]
[1760813252231,0.001,3897.3,3897.2,3.39703346]
[1760813252549,0.001,3897.3,3897.2,0.60688868]
[1760813256160,0.001,3897.3,3897.2,0.10288502]
[1760813256329,0.0843,3897.3,3897.2,0.05817502]
[1760813257028,0.001,3897.3,3897.1,0.002]
[1760813257228,0.0833,3897.2,3897.1,0.002]
[1760813258668,0.001,3897.3,3897.1,0.002]
[1760813258845,0.001,3897.3,3897.1,0.0276601]
[1760813260072,0.6336,3897.2,3897.1,0.0276601]
[1760813260273,0.6336,3897.2,3897.1,0.002]
[1760813261173,0.17371942,3897.3,3897.1,0.002]
[1760813262147,0.6336,3897.2,3897.1,0.002]
[1760813265355,0.7169,3897.2,3897.1,0.002]
[1760813265547,0.6336,3897.2,3897.1,0.002]
[1760813265964,0.7169,3897.2,3897.1,0.002]
[1760813271072,1.11940663,3897.2,3897.1,0.002]
[1760813271784,1.16412988,3897.2,3897.1,0.002]
[1760813272889,1.08082988,3897.2,3897.1,0.002]
[1760813274293,0.67832325,3897.2,3897.1,0.002]
[1760813277392,1.08081778,3897.2,3897.1,0.002]
[1760813278187,1.08081778,3897.2,3897.1,0.4427]
[1760813281688,1.08081778,3897.2,3897.1,0.6658]
[1760813283060,1.08081778,3897.2,3897.1,0.2251]
[1760813283384,1.08081778,3897.2,3897.1,0.6658]
[1760813284074,1.08181778,3897.2,3897.1,0.6658]
[1760813284378,0.67932325,3897.2,3897.1,0.6658]
[1760813293574,0.67932325,3897.2,3897.1,0.2251]
[1760813293779,0.67932325,3897.2,3897.1,0.6585]
[1760813294111,0.67932325,3897.2,3897.1,0.002]
[1760813294314,0.6346,3897.2,3897.1,0.002]
[1760813296530,0.6346,3897.2,3897.1,0.4354]
[1760813296919,0.67932788,3897.2,3897.1,0.4354]
[1760813298023,0.6346,3897.2,3897.1,0.002]
[1760813299019,0.6346,3897.2,3897.1,0.4354]
[1760813300698,0.6346,3897.2,3897.1,0.002]
[1760813300908,0.67932781,3897.2,3897.1,0.002]
[1760813301312,0.76262781,3897.2,3897.1,0.002]
[1760813301822,2.49062781,3897.2,3897.1,0.002]
[1760813302196,2.89312641,3897.2,3897.1,0.002]
[1760813303936,19.15362941,3897.2,3897.1,0.002]
[1760813304139,8.65162141,3897.2,3897.1,0.002]
[1760813304818,8.24912281,3897.2,3897.1,0.002]
[1760813305004,8.25149781,3897.2,3897.1,0.002]
[1760813306125,2.49062781,3897.2,3897.1,0.002]
[1760813306438,6.42533481,3897.2,3897.1,0.002]
[1760813306646,5.42726681,3897.2,3897.1,0.002]
[1760813307007,5.69893581,3897.2,3897.1,0.002]
[1760813307430,5.19504681,3897.2,3897.1,0.002]
[1760813308132,5.71766781,3897.2,3897.1,0.002]
[1760813308835,8.20031259,3897.2,3897.1,0.002]
[1760813309015,28.18504883,3897.2,3897.1,0.002]
[1760813309222,28.69056116,3897.2,3897.1,0.002]
[1760813310247,31.71057135,3897.2,3897.1,0.002]
[1760813311147,32.46692235,3897.2,3897.1,0.002]
[1760813311639,31.40565035,3897.2,3897.1,0.002]
[1760813312138,30.420854,3897.2,3897.1,0.002]
[1760813312440,30.6336,3897.0,3896.7,0.002]
[1760813312645,33.43178135,3896.7,3895.3,0.6621]
[1760813312827,33.43178135,3896.7,3895.3,0.2287]
[1760813312828,29.41844659,3896.7,3895.3,0.2287]
[1760813313139,29.84520611,3896.7,3895.3,0.2287]
[1760813313313,18.03276243,3896.7,3895.3,0.2287]
[1760813313516,17.63012176,3896.7,3895.9,0.4334]
[1760813313735,17.31097952,3896.7,3895.9,0.4334]
[1760813314229,9.77919652,3896.7,3895.9,0.4334]
[1760813314434,24.69130852,3896.7,3895.9,0.4334]
[1760813314840,24.77460852,3896.7,3895.9,0.4334]
[1760813315213,9.86249652,3896.7,3895.6,0.4291]
[1760813315445,31.03709852,3896.7,3895.6,0.4291]
[1760813315941,31.43972792,3896.7,3895.6,0.4291]
[1760813316144,31.68029792,3896.7,3895.6,0.4291]
[1760813317045,22.15875892,3896.7,3895.3,0.2287]
[1760813317246,25.41896992,3896.7,3895.8,0.4291]
[1760813317715,25.41896992,3896.7,3896.2,0.002]
[1760813317915,24.40997292,3896.7,3896.2,0.002]
[1760813318240,26.15403116,3896.7,3896.2,0.002]
[1760813318446,24.84306116,3896.7,3896.2,0.002]
[1760813318842,22.30581016,3896.7,3896.2,0.002]
[1760813319047,21.77781016,3896.7,3896.2,0.002]
[1760813319353,21.80628016,3896.7,3896.2,0.002]
[1760813320218,10.58426816,3896.7,3896.2,0.002]
[1760813320422,23.57151116,3896.7,3896.2,0.002]
[1760813321138,22.10823016,3896.7,3896.2,0.002]
[1760813321359,22.08331116,3896.7,3896.2,0.002]
[1760813321653,21.13089816,3896.7,3896.2,0.002]